bitfinex/quotes_ETHUSD_20240621
["timestamp","ask_amount","ask_price","bid_price","bid_amount"]
[1719000802818,2.54498957,3538.3,3537.3,2.75662863]
[1719000803018,2.26091,3538.4,3537.7,2.26131]
[1719000803318,2.26084,3538.5,3537.1,3.508]
[1719000803319,2.26118,3538.0,3537.4,2.26154]
[1719000803524,2.26118,3538.0,3537.8,0.07400278]
[1719000803728,2.26118,3538.0,3537.4,2.26154]
[1719000804019,2.26111,3538.1,3537.9,0.07398899]
[1719000804232,2.26111,3538.1,3537.5,2.26147]
[1719000804693,2.26116,3538.0,3537.6,0.07403036]
[1719000804891,2.26116,3538.0,3537.4,2.26154]
[1719000805119,2.2611,3538.1,3537.7,0.07401657]
[1719000805297,2.2611,3538.1,3537.4,2.26148]
[1719000805491,2.2611,3538.1,3537.8,0.07400278]
[1719000805798,2.2611,3538.1,3537.4,2.99019063]
[1719000806012,2.2611,3538.1,3537.9,0.07398899]
[1719000806210,4.31672852,3538.0,3537.1,3.508]
[1719000806416,2.05556852,3537.9,3537.1,5.76973]
[1719000806733,2.26105,3538.2,3537.1,3.508]
[1719000806734,2.05574842,3537.8,3537.1,3.508]
[1719000806901,2.26135,3537.7,3537.1,5.76973]
[1719000807293,2.26129,3537.8,3537.1,3.508]
[1719000807496,2.26129,3537.8,3537.2,2.26163]
[1719000807889,2.26129,3537.8,3537.1,3.508]
[1719000808096,2.26136,3537.7,3537.1,5.76973]
[1719000808442,2.26136,3537.7,3537.1,7.316889]
[1719000808585,2.26129,3537.8,3537.2,2.26166]
[1719000809333,2.26135,3537.7,3537.1,7.316889]
[1719000809709,2.26143,3537.6,3537.1,5.055159]
[1719000809909,2.26136,3537.7,3537.1,7.316889]
[1719000810121,2.487232,3538.1,3537.4,2.26148]
[1719000810356,2.05561982,3538.0,3537.4,2.26148]
[1719000810851,2.487232,3538.1,3537.4,2.26148]
[1719000811066,2.05563704,3538.0,3537.4,2.26148]
[1719000811553,2.05563704,3538.0,3537.5,2.26145]
[1719000811734,2.05563704,3538.0,3537.5,2.26147]
[1719000811974,2.261,3538.3,3537.5,2.26147]
[1719000812152,2.2611,3538.1,3537.5,2.26147]
[1719000812312,2.05559383,3538.0,3537.5,2.26147]
[1719000812516,2.05559383,3538.0,3537.6,0.07391212]
[1719000813214,4.31675383,3538.0,3537.6,0.07391212]
[1719000813420,2.2613,3537.8,3537.2,2.26166]
[1719000813661,2.2613,3537.8,3537.3,0.0739535]
[1719000813846,0.45428538,3537.9,3537.3,0.0739535]
[1719000814125,0.45428538,3537.9,3537.1,3.508]
[1719000814126,2.26125,3537.9,3537.2,2.26167]
[1719000814308,2.26131,3537.8,3537.4,0.07393971]
[1719000814525,2.26131,3537.8,3537.2,2.26167]
[1719000814763,5.66686293,3538.7,3537.5,2.33539591]
[1719000814764,2.26097,3538.3,3537.5,2.33539591]
[1719000814910,2.54506863,3538.2,3537.5,2.26147]
[1719000815115,2.05563236,3538.1,3537.6,0.07391212]
[1719000815314,2.26097,3538.3,3537.6,0.07391212]
[1719000815315,2.05555844,3538.0,3537.6,2.26142]
[1719000815517,2.26097,3538.3,3537.7,0.07389833]
[1719000815747,2.0555434,3538.2,3537.7,0.07389833]
[1719000816059,2.26117,3538.0,3537.7,0.07389833]
[1719000816225,4.31688387,3537.9,3537.3,2.2616]
[1719000816560,4.31688387,3537.9,3537.4,0.07393971]
[1719000816561,2.26123,3537.9,3537.4,0.07393971]
[1719000817535,2.26123,3537.9,3537.4,2.33547971]
[1719000818867,2.26123,3537.9,3537.4,0.07393971]
[1719000819072,2.26133,3537.8,3537.2,2.26167]
[1719000819287,2.26133,3537.8,3537.5,0.07392591]
[1719000819447,2.26123,3537.9,3537.3,2.26157]
[1719000819646,2.26123,3537.9,3537.4,0.07393971]
[1719000820400,2.26135,3537.7,3537.4,0.07393971]
[1719000820767,2.26135,3537.7,3537.1,5.76972]
[1719000820970,2.26135,3537.7,3537.5,0.07392591]
[1719000821269,2.26135,3537.7,3537.6,0.07391212]
[1719000821596,2.26143,3537.6,3537.1,3.508]
[1719000822261,2.26154,3537.5,3537.1,3.508]
[1719000822669,2.26162,3537.3,3536.7,2.26199]
[1719000822878,2.26116,3538.0,3536.6,3.3855]
[1719000822879,2.26167,3537.2,3536.6,5.64755]
[1719000823588,2.2618,3537.0,3536.6,3.3855]
[1719000824071,2.26167,3537.2,3536.2,3.3074]
[1719000824283,2.26181,3537.0,3536.3,2.26219]
[1719000824792,2.26161,3537.4,3536.6,2.26205]
[1719000824985,2.54563711,3537.3,3536.6,2.26205]
[1719000825183,2.26169,3537.2,3536.5,2.26211]
[1719000825388,2.26169,3537.2,3536.6,2.26205]
[1719000826390,2.26205,3536.7,3535.9,9.70247]
[1719000826561,3.0,3537.3,3535.7,3.2131]
[1719000826562,3.0,3537.3,3536.0,0.05655666]
[1719000826766,2.26186,3536.9,3536.2,2.26231]
[1719000826971,2.26193,3536.8,3536.1,2.26237]
[1719000827482,2.2618,3537.0,3536.2,2.26227]
[1719000827483,2.26187,3536.9,3536.2,2.26227]
[1719000828020,0.83773733,3537.4,3536.3,3.37295201]
[1719000828021,2.26168,3537.2,3536.3,3.37295201]
[1719000828305,2.26168,3537.2,3536.3,3.91764721]
[1719000828460,2.26168,3537.2,3536.6,2.26205]
[1719000829271,5.2614,3537.7,3536.7,2.31853515]
[1719000829272,2.26142,3537.6,3536.7,2.31853515]
[1719000829472,2.54560787,3537.5,3536.7,2.31853515]
[1719000829677,2.54560787,3537.4,3536.7,2.31853515]
[1719000829888,4.92838576,3538.1,3537.0,2.26178]
[1719000830106,2.54553558,3538.0,3537.1,0.05653746]
[1719000830321,2.54553558,3537.9,3537.1,0.05653746]
[1719000830467,2.54553558,3537.8,3537.1,0.05653746]
[1719000830673,2.54553558,3537.7,3537.1,0.05653746]
[1719000831007,0.48952607,3537.6,3537.1,0.05653746]
[1719000831213,0.76766356,3537.9,3537.1,0.05653746]
[1719000831411,2.26136,3537.7,3537.1,2.31820746]
[1719000831582,0.48950669,3537.6,3537.1,0.05653746]
[1719000831779,2.26129,3537.8,3537.1,0.05653746]
[1719000832819,2.26129,3537.8,3537.2,2.33578598]
[1719000833218,2.26137,3537.7,3537.2,0.07412598]
[1719000833593,2.26137,3537.7,3537.1,2.26173]
[1719000833805,2.26137,3537.7,3537.3,0.07418687]
[1719000833999,2.26137,3537.7,3537.2,0.07420067]
[1719000834335,2.26137,3537.7,3537.3,0.07418687]
[1719000834534,2.26137,3537.7,3537.1,2.26173]
[1719000834740,2.26137,3537.7,3537.4,0.07418242]
[1719000834914,2.26137,3537.7,3537.1,2.26173]
[1719000835100,2.26137,3537.7,3537.5,0.07416863]
[1719000835295,2.26137,3537.7,3537.1,2.26173]
[1719000835614,2.26137,3537.7,3537.6,0.07415484]
[1719000835812,2.26137,3537.7,3537.1,2.26173]
[1719000836011,2.26129,3537.8,3537.6,0.07415484]
[1719000836210,2.26129,3537.8,3537.2,2.26167]
[1719000836824,2.26129,3537.8,3537.3,0.07414642]
[1719000838135,2.26129,3537.8,3537.3,2.33575642]
[1719000838527,2.26123,3537.9,3537.3,0.07414642]
[1719000838709,2.05573618,3537.8,3537.1,2.26173]
[1719000838912,2.05573618,3537.8,3537.4,0.07414507]
[1719000839113,2.05573618,3537.8,3537.1,3.051863]
[1719000839329,2.05573618,3537.8,3537.5,0.07413128]
[1719000839638,2.05573618,3537.8,3537.3,2.2616]
[1719000839948,2.26151,3537.5,3536.8,2.26191]
[1719000840126,2.26151,3537.5,3537.4,0.0741513]
[1719000840443,4.3173787,3537.5,3536.8,2.26191]
[1719000840633,2.26151,3537.5,3536.8,2.26191]
[1719000840805,2.26156,3537.4,3536.9,0.07422338]
[1719000841010,2.26151,3537.5,3536.9,0.07422338]
[1719000841234,2.2618,3537.0,3536.9,0.07422338]
[1719000841439,2.26185,3537.0,3536.7,7.44]
[1719000841614,2.26174,3537.1,3536.9,0.07422338]
[1719000841820,2.05615489,3537.0,3536.8,0.07423717]
[1719000842022,2.7366571,3537.2,3536.5,5.65851]
[1719000842231,2.2618,3537.0,3536.5,3.3964]
[1719000842432,2.26198,3536.8,3536.5,3.3964]
[1719000842641,2.26174,3537.1,3536.5,3.3964]
[1719000842808,2.05617127,3537.0,3536.5,3.3964]
[1719000843447,2.26184,3537.0,3536.5,3.3964]
[1719000844123,2.26174,3537.1,3536.5,5.65851]
[1719000844308,2.05616713,3537.0,3536.5,5.65851]
[1719000844517,2.26156,3537.4,3536.8,2.2619]
[1719000844710,2.05605802,3537.3,3536.8,2.2619]
[1719000845428,2.26147,3537.6,3536.8,2.2619]
[1719000845648,2.26147,3537.6,3536.9,2.26184]
[1719000845649,4.80699152,3537.5,3536.9,2.26184]
[1719000845848,2.05595753,3537.4,3536.9,2.26184]
[1719000846023,2.05595753,3537.4,3536.3,3.3716]
[1719000846219,2.26185,3537.0,3536.4,2.26213]
[1719000846630,2.0562426,3536.9,3536.4,2.26213]
[1719000846822,2.2618,3537.0,3536.4,2.26213]
[1719000847147,2.26187,3536.9,3536.3,5.63384]
[1719000847360,2.26187,3536.9,3536.4,2.26217]
[1719000847508,2.26173,3537.1,3536.4,2.26217]
[1719000847724,2.26203,3536.7,3535.0,7.44]
[1719000847937,3.4122,3537.0,3535.3,2.26286]
[1719000847938,2.26244,3536.0,3535.3,2.26286]
[1719000848151,0.433644,3535.9,3535.3,2.26286]
[1719000848320,2.26252,3535.9,3535.3,2.26286]
[1719000848946,2.26244,3536.0,3535.3,2.26286]
[1719000849153,2.26244,3536.0,3535.1,2.26301]
[1719000849154,2.26244,3536.0,3535.4,2.26281]
[1719000849468,2.26251,3535.9,3535.3,2.26289]
[1719000850238,2.26251,3535.9,3535.1,2.26296]
[1719000850448,2.26251,3535.9,3535.3,2.26288]
[1719000853521,2.26239,3536.1,3535.4,2.26282]
[1719000853522,2.26244,3536.0,3535.4,2.26282]
[1719000853963,2.26238,3536.1,3535.5,2.26275]
[1719000854266,2.26231,3536.2,3535.6,2.26269]
[1719000854457,2.26238,3536.1,3535.4,2.26282]
[1719000854756,2.26238,3536.1,3535.4,2.26276]
[1719000855159,2.26238,3536.1,3535.5,2.26275]
[1719000855861,2.26232,3536.2,3535.6,2.26267]
[1719000857575,2.26238,3536.1,3535.4,2.26276]
[1719000857744,2.26248,3536.0,3535.4,2.26276]
[1719000858274,2.26248,3536.0,3535.5,2.26275]
[1719000858448,2.26238,3536.1,3535.5,2.26275]
[1719000861440,2.26218,3536.4,3535.7,2.26257]
[1719000861642,3.70935384,3536.8,3535.8,5.53967]
[1719000861643,2.26193,3536.8,3535.8,5.53967]
[1719000861923,2.26155,3537.4,3536.2,2.2623]
[1719000861924,2.26173,3537.2,3536.2,2.2623]
[1719000862069,2.26173,3537.2,3536.6,2.26204]
[1719000862265,2.26155,3537.4,3536.6,2.26204]
[1719000862266,2.26161,3537.3,3536.6,2.26204]
[1719000862570,2.26161,3537.3,3536.7,2.26198]
[1719000862781,2.26161,3537.3,3536.7,2.32213972]
[1719000863800,2.26155,3537.4,3536.8,2.26192]
[1719000864098,2.26155,3537.4,3536.8,2.32206592]
[1719000864469,2.26142,3537.6,3537.0,2.26175]
[1719000864899,2.26142,3537.6,3537.1,0.06010454]
[1719000866907,6.2399,3538.2,3537.1,2.32183454]
[1719000867148,6.2399,3538.2,3537.2,0.23218345]
[1719000867149,2.26105,3538.2,3537.2,0.23218345]
[1719000867274,2.26105,3538.2,3536.9,2.074]
[1719000867275,2.26117,3538.0,3537.3,2.26154]
[1719000867493,2.26117,3538.0,3537.3,2.32127836]
[1719000867682,2.2611,3538.1,3537.4,2.26148]
[1719000867892,0.452208,3538.0,3537.4,2.26148]
[1719000868118,0.452208,3538.0,3537.5,0.05970456]
[1719000868768,0.452208,3538.0,3537.5,2.32117456]
[1719000869082,2.26105,3538.2,3537.6,2.2614]
[1719000869503,2.26098,3538.3,3537.7,2.32053243]
[1719000870135,2.26106,3538.2,3537.7,0.05919243]
[1719000870447,2.2611,3538.1,3537.5,2.26148]
[1719000870602,2.2611,3538.1,3537.8,0.0591476]
[1719000870794,0.452208,3538.0,3537.5,2.26148]
[1719000870994,0.452208,3538.0,3537.9,0.05913381]
[1719000871295,0.452208,3538.0,3537.4,2.26154]
[1719000871296,2.713378,3538.0,3537.4,2.26154]
[1719000871532,2.26117,3538.0,3537.9,0.05913381]
[1719000871734,2.26117,3538.0,3537.4,2.26154]
[1719000871897,2.26104,3538.2,3537.5,5.76745896]
[1719000872232,2.26109,3538.2,3537.5,5.70827]
[1719000872535,2.26109,3538.2,3537.6,2.3206038]
[1719000872738,2.713294,3538.2,3537.6,2.3206038]
[1719000873438,2.2611,3538.1,3537.6,2.3206038]
[1719000873793,0.452204,3538.2,3537.6,2.3206038]
[1719000874011,2.26103,3538.2,3537.7,2.26135]
[1719000874242,2.26103,3538.2,3537.7,0.05918001]
[1719000875948,2.26117,3538.0,3537.7,0.05918001]
[1719000876093,2.26092,3538.4,3537.7,0.05918001]
[1719000876463,2.26119,3538.0,3537.8,0.0590793]
[1719000876942,2.26129,3537.8,3537.1,7.70602]
[1719000877124,2.26129,3537.8,3537.2,2.26165]
[1719000877300,2.26129,3537.8,3536.7,2.26193]
[1719000877301,2.26132,3537.8,3537.0,2.2618]
[1719000877629,2.26122,3537.9,3537.1,2.32090584]
[1719000877797,2.807707,3537.9,3537.1,2.32090584]
[1719000878235,2.807707,3537.9,3537.3,2.2616]
[1719000878436,2.807707,3537.9,3537.4,2.26154]
[1719000878591,2.807707,3537.9,3537.4,2.32067446]
[1719000879097,2.7682157,3537.8,3537.4,0.05913446]
[1719000879602,2.7682157,3537.8,3537.5,0.05912067]
[1719000879946,2.7682157,3537.8,3537.6,0.05910688]
[1719000879947,0.5068857,3537.8,3537.6,0.05910688]
[1719000880316,0.5068857,3537.8,3537.3,2.2616]
[1719000880500,2.26122,3537.9,3537.7,0.05909309]
[1719000880727,2.26117,3538.0,3537.2,2.26165]
[1719000881040,2.2611,3538.1,3536.7,5.2767]
[1719000881253,2.26147,3537.6,3537.3,0.05914825]
[1719000881414,2.26147,3537.6,3536.7,3.2027]
[1719000881415,2.26147,3537.6,3536.8,2.26187]
[1719000881616,2.26147,3537.6,3537.4,0.05895749]
[1719000881821,2.26147,3537.6,3537.0,2.26179]
[1719000882028,2.26147,3537.6,3537.5,0.0589437]
[1719000882231,2.71375,3537.6,3537.0,2.26179]
[1719000882409,2.71375,3537.6,3537.5,0.0589437]
[1719000882593,2.71375,3537.6,3537.0,2.26179]
[1719000882803,2.2613,3537.8,3537.5,0.0589437]
[1719000882999,2.2613,3537.8,3537.3,2.26161]
[1719000883200,2.2613,3537.8,3537.6,0.05892991]
[1719000883401,2.2613,3537.8,3537.3,2.26161]
[1719000883919,2.2613,3537.8,3537.4,0.05895749]
[1719000884713,2.713549,3537.8,3537.4,0.05895749]
[1719000885458,2.26135,3537.7,3537.5,0.0589437]
[1719000885951,2.26135,3537.7,3537.1,2.26173]
[1719000886152,2.26135,3537.7,3537.6,0.05892991]
[1719000886521,2.26144,3537.6,3537.0,4.3358]
[1719000886977,2.26151,3537.5,3537.0,2.074]
[1719000888927,2.26151,3537.5,3536.7,3.2027]
[1719000888928,2.26155,3537.4,3536.7,3.2027]
[1719000889129,2.26168,3537.2,3536.7,3.2027]
[1719000889361,0.29851189,3537.4,3536.7,5.46468]
[1719000889557,2.56007189,3537.4,3536.9,2.26186]
[1719000889752,2.56007189,3537.4,3536.6,7.44]
[1719000889753,0.48215519,3537.3,3536.6,7.44]
[1719000889952,2.26179,3537.1,3536.6,7.44]
[1719000891641,2.26184,3537.0,3536.6,7.44]
[1719000891840,2.26184,3537.0,3536.4,2.26218]
[1719000892051,2.26187,3536.9,3536.4,2.26218]
[1719000892276,2.26187,3536.9,3536.3,5.77894]
[1719000892632,2.26187,3536.9,3536.4,0.05930281]
[1719000895063,2.26208,3536.6,3536.4,0.05930281]
[1719000895298,0.226208,3536.6,3536.4,0.05930281]
[1719000895564,0.226208,3536.6,3536.1,2.26237]
[1719000895781,2.26205,3536.6,3536.5,0.05928901]
[1719000896010,2.26205,3536.6,3536.0,2.26243]
[1719000896215,2.262,3536.7,3536.5,0.05928901]
[1719000896376,2.262,3536.7,3536.1,2.26236]
[1719000896707,2.262,3536.7,3536.6,0.05927521]
[1719000896908,3.3380566,3536.7,3536.1,2.26236]
[1719000897080,3.3380566,3536.7,3536.6,0.05927521]
[1719000897277,2.26206,3536.6,3536.1,2.26236]
[1719000897481,1.0760566,3536.7,3536.1,2.26236]
[1719000897687,2.26193,3536.8,3536.1,2.26236]
[1719000897867,2.26205,3536.7,3536.2,2.26231]
[1719000898065,2.26205,3536.7,3536.1,2.26237]
[1719000898269,2.26179,3537.1,3536.1,2.26237]
[1719000898493,2.26179,3537.1,3536.5,2.26206]
[1719000898494,0.48959832,3537.0,3536.5,2.26206]
[1719000898695,2.26179,3537.1,3536.5,2.26206]
[1719000898892,2.26167,3537.2,3536.5,2.26206]
[1719000899207,2.2618,3537.0,3536.4,2.26217]
[1719000900318,2.2618,3537.0,3536.5,2.26211]
[1719000900525,2.26174,3537.1,3536.5,2.26211]
[1719000901204,2.26167,3537.2,3536.6,2.26202]
[1719000901504,2.26161,3537.3,3536.6,5.78435]
[1719000902047,2.26174,3537.1,3536.6,5.78435]
[1719000902241,2.26147,3537.6,3536.6,5.78435]
[1719000902242,6.2343,3537.9,3536.6,5.78435]
[1719000902405,2.26141,3537.7,3536.9,2.26186]
[1719000902715,2.26141,3537.7,3537.1,2.26173]
[1719000903112,2.26141,3537.7,3537.2,0.05921111]
[1719000903324,2.2613,3537.8,3537.2,2.32086111]
[1719000903519,3.2343,3537.9,3537.3,2.26161]
[1719000903729,5.49553,3537.9,3537.2,0.05921111]
[1719000904049,5.49553,3537.9,3537.4,0.05908415]
[1719000904253,6.271193,3537.9,3537.3,2.32068931]
[1719000904555,6.271193,3537.9,3537.5,0.05905173]
[1719000904715,6.271193,3537.9,3537.3,2.26161]
[1719000904716,6.271193,3537.9,3537.4,0.05905931]
[1719000904929,6.271193,3537.9,3537.6,0.05903173]
[1719000905117,0.8532293,3537.8,3537.5,0.05894617]
[1719000905421,5.49553,3537.9,3537.6,0.05893238]
[1719000905616,2.26131,3537.8,3537.6,0.05893238]
[1719000905951,3.4636,3538.2,3537.4,2.26151]
[1719000906109,2.54513233,3538.1,3537.7,0.05893722]
[1719000906311,2.26104,3538.2,3537.6,2.26139]
[1719000906626,2.26104,3538.2,3537.7,0.05893722]
[1719000906940,0.452195,3538.1,3537.7,0.05893722]
[1719000907108,2.26097,3538.3,3537.7,0.05893722]
[1719000907309,2.05556821,3538.2,3537.7,0.05893722]
[1719000908114,4.31661821,3538.2,3537.7,0.05893722]
[1719000908321,2.26105,3538.2,3537.7,0.05893722]
[1719000908532,2.26105,3538.2,3537.6,2.26141]
[1719000908857,2.26097,3538.3,3537.8,2.26128]
[1719000909066,2.05559453,3538.2,3537.8,2.26128]
[1719000909209,0.545742,3538.4,3538.0,2.26113]
[1719000909411,10.6354,3538.9,3538.0,2.26113]
[1719000909632,10.6354,3538.9,3538.1,0.05888207]
[1719000909633,2.26078,3538.6,3538.1,0.05888207]
[1719000909912,2.05533894,3538.5,3538.1,2.26103]
[1719000910171,2.26072,3538.7,3538.2,0.05886828]
[1719000910375,2.84197233,3538.6,3538.2,2.31989828]
[1719000910541,3.3454,3538.9,3538.3,2.26094]
[1719000910763,3.3454,3538.9,3538.4,2.26089]
[1719000910764,2.05521634,3538.8,3538.4,2.26089]
[1719000911052,2.05521634,3538.8,3538.4,0.05872896]
[1719000911376,2.05521634,3538.8,3538.4,2.31962896]
[1719000911523,2.26059,3538.9,3538.4,2.31962896]
[1719000911725,2.28123466,3538.8,3538.4,2.31962896]
[1719000911925,0.226059,3538.8,3538.4,2.31962896]
[1719000912539,0.226059,3538.8,3538.4,0.05872896]
[1719000912978,0.226059,3538.8,3537.9,7.81481]
[1719000912979,2.26071,3538.7,3538.0,2.26116]
[1719000913173,2.26071,3538.7,3538.5,0.05871518]
[1719000913331,2.7354469,3538.7,3538.0,2.26116]
[1719000913534,0.226059,3538.8,3538.6,0.05870139]
[1719000913730,0.226059,3538.8,3538.3,2.26097]
[1719000914231,0.226059,3538.8,3538.4,0.05872896]
[1719000914751,2.486709,3538.8,3538.4,0.05872896]
[1719000915157,2.486709,3538.8,3538.2,2.26103]
[1719000915333,2.486709,3538.8,3538.5,0.05812538]
[1719000915550,2.486709,3538.8,3538.2,2.26103]
[1719000916071,2.486709,3538.8,3538.3,0.05815295]
[1719000916236,2.486709,3538.8,3538.2,2.26103]
[1719000916434,2.486709,3538.8,3538.4,0.05816399]
[1719000916435,0.226059,3538.8,3538.4,0.05816399]
[1719000916636,2.26084,3538.5,3537.9,3.4796]
[1719000916941,2.26092,3538.4,3537.9,3.4796]
[1719000917931,2.26091,3538.4,3537.9,3.4796]
[1719000918559,2.26082,3538.6,3537.9,3.4796]
[1719000918560,2.26097,3538.3,3537.9,3.4796]
[1719000919381,2.26087,3538.5,3537.9,3.4796]
[1719000919560,2.26087,3538.5,3537.9,5.74081]
[1719000919740,2.26087,3538.5,3538.0,2.26115]
[1719000919939,3.0,3539.1,3538.0,2.26115]
[1719000920162,2.26072,3538.7,3538.2,2.26103]
[1719000920351,4.52124,3538.9,3538.2,2.26103]
[1719000920560,2.26059,3538.9,3538.2,2.26103]
[1719000920758,2.26059,3538.9,3538.3,2.26097]
[1719000920964,3.7227911,3538.9,3538.3,2.26097]
[1719000921283,2.26066,3538.8,3538.2,2.26102]
[1719000922080,3.7227911,3538.9,3538.3,2.26096]
[1719000922454,2.26057,3539.0,3538.4,4.33489]
[1719000922658,2.26057,3539.0,3538.4,4.39311295]
[1719000923477,2.2606,3538.9,3538.4,0.05822295]
[1719000923689,2.2606,3538.9,3538.8,0.864]
[1719000923976,1.004109,3538.9,3538.8,0.864]
[1719000924146,1.004109,3538.9,3538.8,0.92206852]
[1719000924490,3.264689,3538.9,3538.8,0.05806852]
[1719000924713,2.26058,3538.9,3538.7,0.864]
[1719000925063,2.26058,3538.9,3538.8,0.05806852]
[1719000925263,3.264681,3538.9,3538.8,0.05806852]
[1719000926387,1.004101,3538.9,3538.8,0.05806852]
[1719000926565,1.004101,3538.9,3538.7,0.864]
[1719000926904,1.004101,3538.9,3538.8,0.05806852]
[1719000927200,1.004101,3538.9,3538.7,0.864]
[1719000927417,0.5525081,3538.8,3537.8,7.44]
[1719000927558,0.5525081,3538.8,3537.3,12.13]
[1719000927559,2.26103,3538.3,3537.3,5.6271]
[1719000927768,2.26104,3538.2,3537.5,2.26146]
[1719000927993,2.26104,3538.2,3537.6,2.2614]
[1719000928175,2.26104,3538.2,3538.0,0.864]
[1719000928477,2.26103,3538.2,3538.0,0.864]
[1719000928711,0.33603,3538.5,3538.0,0.864]
[1719000929011,0.595706,3538.4,3538.2,0.864]
[1719000929161,2.2607,3538.8,3538.3,0.864]
[1719000929364,2.2607,3538.8,3538.2,2.26102]
[1719000929566,2.2607,3538.8,3538.1,2.26109]
[1719000929772,2.26092,3538.4,3537.6,4.33541]
[1719000930105,2.26104,3538.2,3537.6,4.33541]
[1719000930412,2.26078,3538.6,3537.6,2.074]
[1719000930413,2.26119,3538.0,3537.6,2.074]
[1719000930873,2.26097,3538.3,3537.6,4.33541]
[1719000930874,2.2611,3538.1,3537.6,4.33541]
[1719000931821,2.26119,3538.0,3537.6,2.074]
[1719000932370,2.26119,3538.0,3537.4,5.51204]
[1719000934490,2.26123,3537.9,3537.4,5.51204]
[1719000936013,2.26123,3537.9,3537.4,2.26154]
[1719000936921,3.192,3538.6,3537.1,3.5031]
[1719000937134,2.2615,3537.5,3536.9,2.2618]
[1719000937839,2.2615,3537.5,3537.0,0.08744652]
[1719000938131,2.26154,3537.4,3537.0,0.08744652]
[1719000938300,2.487694,3537.4,3537.0,0.08744652]
[1719000938501,2.487694,3537.4,3536.8,2.26192]
[1719000938721,2.26154,3537.4,3537.1,0.08743191]
[1719000938925,2.26136,3537.7,3537.0,2.2618]
[1719000939135,2.26136,3537.7,3537.2,0.08741729]
[1719000939431,2.26144,3537.6,3537.3,0.08740268]
[1719000939758,2.26142,3537.6,3537.1,2.26173]
[1719000939959,2.26142,3537.6,3536.9,2.26181]
[1719000940122,2.26142,3537.6,3537.2,0.08741729]
[1719000940302,2.26142,3537.6,3537.0,2.26179]
[1719000940936,2.26142,3537.6,3537.1,0.08743191]
[1719000942419,2.26129,3537.8,3537.1,2.34916191]
[1719000942730,2.26121,3538.0,3537.3,2.26158]
[1719000943126,2.26124,3537.9,3537.4,2.34943948]
[1719000943298,2.2611,3538.1,3537.5,2.26146]
[1719000943299,2.26112,3538.1,3537.5,2.26146]
[1719000943500,3.3392,3538.2,3537.5,2.34935486]
[1719000943800,2.26117,3538.0,3537.5,2.34935486]
[1719000944697,2.821112,3538.1,3537.5,2.34935486]
[1719000945814,2.05568572,3538.0,3537.5,2.34935486]
[1719000945999,2.821112,3538.1,3537.5,2.34935486]
[1719000946333,2.05569741,3538.0,3537.5,2.34935486]
[1719000946540,4.31686741,3538.0,3537.5,2.34935486]
[1719000946712,2.26124,3537.9,3537.5,0.08789486]
[1719000946917,2.26124,3537.9,3537.3,2.2616]
[1719000947127,2.26124,3537.9,3537.6,0.08779333]
[1719000947328,2.26124,3537.9,3537.3,2.2616]
[1719000947505,2.26124,3537.9,3537.7,0.08777872]
[1719000948012,2.26124,3537.9,3537.8,0.08776411]
[1719000948196,7.46914528,3537.9,3537.8,0.08776411]
[1719000948399,2.21145,3537.6,3536.9,2.2618]
[1719000948627,2.21145,3537.6,3537.0,0.08788101]
[1719000948862,2.21145,3537.6,3537.0,2.34965101]
[1719000949032,2.2613,3537.8,3537.2,2.26166]
[1719000949341,2.26143,3537.6,3537.1,0.5490115]
[1719000949517,2.2613,3537.8,3537.3,0.08783717]
[1719000949704,2.26135,3537.7,3537.1,2.7228451]
[1719000949901,2.26135,3537.7,3537.4,0.08782255]
[1719000950208,2.26135,3537.7,3537.5,0.08780794]
[1719000950416,2.26135,3537.7,3537.2,2.26166]
[1719000950602,5.60025,3538.2,3537.5,2.26146]
[1719000950945,2.05563478,3538.1,3537.6,0.08779333]
[1719000951461,2.26086,3538.5,3537.9,2.26118]
[1719000951750,2.26086,3538.5,3538.0,0.864]
[1719000952044,2.26086,3538.5,3538.0,0.95176593]
[1719000952357,10.9847,3538.1,3538.0,0.08776593]
[1719000952649,2.26152,3537.5,3537.1,0.864]
[1719000953021,2.26159,3537.4,3537.1,0.864]
[1719000954038,2.26161,3537.3,3537.1,0.864]
[1719000955422,2.26134,3537.8,3537.1,0.864]
[1719000955423,2.26142,3537.6,3537.1,0.864]
[1719000955621,2.26142,3537.6,3537.3,0.864]
[1719000956112,2.26149,3537.5,3537.3,0.864]
[1719000957436,2.26153,3537.5,3537.3,0.864]
[1719000958012,2.26125,3537.9,3537.3,0.864]
[1719000958237,2.75074835,3537.8,3537.5,0.864]
[1719000958418,2.26129,3537.8,3537.3,2.26159]
[1719000958650,2.26129,3537.8,3537.5,0.864]
[1719000958846,2.26123,3537.9,3537.5,0.864]
[1719000959005,0.48945491,3537.8,3537.5,0.864]
[1719000959211,2.26117,3538.0,3537.5,0.864]
[1719000959438,0.48944322,3537.9,3537.5,0.864]
[1719000959676,0.48944322,3537.8,3537.5,0.864]
[1719000959956,2.26117,3538.0,3537.5,0.864]
[1719000960245,0.48944002,3537.9,3537.5,3.12546]
[1719000960464,2.26099,3538.3,3537.7,3.12534]
[1719000960625,0.48938797,3538.2,3538.0,0.864]
[1719000960960,0.48939306,3538.1,3538.0,0.864]
[1719000961153,0.48939279,3538.1,3538.0,0.864]
[1719000961860,2.26084,3538.5,3538.0,0.864]
[1719000962024,2.75029229,3538.4,3537.9,0.864]
[1719000962231,0.48937229,3538.3,3537.9,0.864]
[1719000963256,0.48937229,3538.3,3538.1,3.12509]
[1719000963478,2.26074,3538.7,3538.1,3.12509]
[1719000963778,2.75011399,3538.6,3538.1,3.12509]
[1719000963924,2.26078,3538.6,3538.1,0.864]
[1719000964120,2.26074,3538.7,3538.1,0.864]
[1719000964121,2.26085,3538.5,3538.1,0.864]
[1719000967794,2.26085,3538.5,3538.2,0.08463086]